{"text_format":"3","workbook":"xlsx","n_sheets":26,"sheets":["Aloitus","1","2","3","4","5","6","7","8","9","10","11","12","13","14","15","16","17","18","19","20","21","22","23","24","Lisätietoja"],"not_rendered":{"images":24,"defined_names":5,"pivot_tables":19},"read":"whole","date_system":"1900"}

{"sheet":"Aloitus","index":0,"n_rows":5,"n_cols":1,"rows_kept":5}
["Tervetuloa\nOhjeita näytönlukuohjelmia varten: Hyödynnä pivot-taulukoita kattavasti. Yksinkertainen pivot-taulukko antaa selkeän yhteenvedon tiedoista, mutta joskus tarvitset täsmälliset vastaukset tiettyihin kysymyksiin. Tällöin sarakekenttien ja rivikenttien lisääminen on hyödyllistä. \nNäissä ohjeissa kerrotaan, mihin soluihin siirtymällä saa tietoja tietyn ominaisuuden käytöstä tai missä on lisälukemista.\nAloita painamalla Ctrl + Page Down"]
["Hyödynnä pivot-taulukoita kattavasti"]
["Yksinkertainen pivot-taulukko antaa selkeän yhteenvedon tiedoista,\nmutta joskus tarvitset täsmälliset vastaukset tiettyihin kysymyksiin.\nTällöin sarakekenttien ja rivikenttien lisääminen on hyödyllistä."]
["HYÖDYLLISIÄ TIETOJA\nKävitkö läpi ensimmäisen opetusohjelman? Jos et, valitse Tiedosto > Uusi ja etsi kohta Tee ensimmäinen Pivot-taulukkosi."]
["Palaa alkuun painamalla Ctrl + Home. Voit aloittaa esittelyn painamalla Ctrl + Page Down."]

{"sheet":"1","index":1,"n_rows":16,"n_cols":9,"rows_kept":16}
["Ensimmäisessä opetusohjelmassa tutustutimme sinut pivot-taulukon käsitteeseen. Olemme myös selittäneet , miten rivikenttää voi käyttää ehtona, joka jakaa arvokentän osiin.   "]
["Solut H10–I14 sisältävät pivot-taulukon, joka tekee yhteenvedon solujen B8–E16 tiedoista. Pivot-taulukossa on kaksi saraketta: Ostaja ja Summa  / Summa. Ostaja-sarake sisältää arvot Isä, Äiti, Karita ja Yhteensä. Yhteissumma-sarake sisältää arvot 220 €, 270 €, 810 € ja 1 300 €.  Ostaja-sarake koostuu Rivi-kentästä, ja Summa  / Summa-sarake koostuu Arvo-kentästä."]
["Jos haluat jatkaa tätä opetusohjelmaa, paina Ctrl + Page Down. Jos haluat palata edelliseen taulukkoon, paina Ctrl + Page Up."]
[]
[]
[]
[]
[null,"Päivämäärä","Ostaja","Tyyppi","Summa"]
["Tässä esimerkissä näytetään, miten rivikenttä...","2017-01-01","Isä","Lahjat",{"v":95,"d":"95 €"}]
["...jakaa arvokentän osiin.","2017-01-15","Äiti","Ruoka",{"v":325,"d":"325 €"},null,null,"Ostaja","Summa  / Summa"]
[null,"2017-01-17","Äiti","Liput",{"v":250,"d":"250 €"},null,null,"Isä",{"v":220,"d":"220 €"}]
[null,"2017-01-21","Isä","Ruoka",{"v":125,"d":"125 €"},null,null,"Karita",{"v":270,"d":"270 €"}]
[null,"2017-02-02","Äiti","Ruoka",{"v":235,"d":"235 €"},null,null,"Äiti",{"v":810,"d":"810 €"}]
[null,"2017-02-20","Karita","Musiikki",{"v":20,"d":"20 €"},null,null,"Kaikki yhteensä",{"v":1300,"d":"1,300 €"}]
[null,"2017-02-25","Karita","Liput",{"v":125,"d":"125 €"}]
[null,"2017-02-25","Karita","Urheilu",{"v":125,"d":"125 €"}]

{"sheet":"2","index":2,"n_rows":108,"n_cols":7,"rows_kept":108}
["Kun tarkastelet pivot-taulukkoa ensimmäistä kertaa, haluat ehkä kuitenkin saada siitä enemmän vastauksia."]
["Kun tarkastelet pivot-taulukkoa ensimmäistä kertaa, mieleesi voi tulla kysymyksiä, kuten ”Milloin nämä ostot tehtiin?”, ”Mihin kukin henkilö käytti rahaa? ja ”Mikä äidin ostoista oli noin kallis?”."]
["Tässä esimerkissä soluissa F11–G15 näkyy sama kaksisarakkeinen pivot-taulukko kuin aiemminkin. Ostaja-sarake on Rivi-kenttä ja sisältää arvot Isä, Äiti, Karita ja Yhteensä. Summa  / Summa-sarake on Arvo-kenttä ja sisältää arvot 220 €, 270 €, 810 € ja 1 300 €. "]
["Jos haluat jatkaa tätä opetusohjelmaa, paina Ctrl + Page Down. Jos haluat palata edelliseen taulukkoon, paina Ctrl + Page Up."]
[]
[]
[]
[]
[]
[]
[{"$nulls":5},"Ostaja","Summa  / Summa"]
[{"$nulls":5},"Isä",{"v":220,"d":"220 €"}]
[{"$nulls":5},"Karita",{"v":270,"d":"270 €"}]
[{"$nulls":5},"Äiti",{"v":810,"d":"810 €"}]
[{"$nulls":5},"Kaikki yhteensä",{"v":1300,"d":"1,300 €"}]
{"$rows_empty":84}
[null,"Päivämäärä","Ostaja","Tyyppi","Summa"]
[null,"2017-01-01","Isä","Lahjat",{"v":95,"d":"95 €"}]
[null,"2017-01-15","Äiti","Ruoka",{"v":325,"d":"325 €"}]
[null,"2017-01-17","Äiti","Liput",{"v":250,"d":"250 €"}]
[null,"2017-01-21","Isä","Ruoka",{"v":125,"d":"125 €"}]
[null,"2017-02-02","Äiti","Ruoka",{"v":235,"d":"235 €"}]
[null,"2017-02-20","Karita","Musiikki",{"v":20,"d":"20 €"}]
[null,"2017-02-25","Karita","Liput",{"v":125,"d":"125 €"}]
[null,"2017-02-25","Karita","Urheilu",{"v":125,"d":"125 €"}]

{"sheet":"3","index":3,"n_rows":108,"n_cols":7,"rows_kept":108}
["Nämä ovat kaikki hyviä kysymyksiä, mutta keskitytään nyt vain yhteen kysymykseen."]
["Mihin kukin henkilö käytti rahaa?"]
["Viitteenä soluissa F11–G15 näkyy sama kaksisarakkeinen pivot-taulukko kuin aiemminkin. Ostaja-sarake on Rivi-kenttä ja sisältää arvot Isä, Äiti, Karita ja Yhteensä. Summa  / Summa-sarake on Arvo-kenttä ja sisältää arvot 220 €, 270 €, 810 € ja 1 300 €. "]
["Jos haluat jatkaa tätä opetusohjelmaa, paina Ctrl + Page Down. Jos haluat palata edelliseen taulukkoon, paina Ctrl + Page Up."]
[]
[]
[]
[]
[]
[]
[{"$nulls":5},"Ostaja","Summa  / Summa"]
[{"$nulls":5},"Isä",{"v":220,"d":"220 €"}]
[{"$nulls":5},"Karita",{"v":270,"d":"270 €"}]
[{"$nulls":5},"Äiti",{"v":810,"d":"810 €"}]
[{"$nulls":5},"Kaikki yhteensä",{"v":1300,"d":"1,300 €"}]
{"$rows_empty":84}
[null,"Päivämäärä","Ostaja","Tyyppi","Summa"]
[null,"2017-01-01","Isä","Lahjat",{"v":95,"d":"95 €"}]
[null,"2017-01-15","Äiti","Ruoka",{"v":325,"d":"325 €"}]
[null,"2017-01-17","Äiti","Liput",{"v":250,"d":"250 €"}]
[null,"2017-01-21","Isä","Ruoka",{"v":125,"d":"125 €"}]
[null,"2017-02-02","Äiti","Ruoka",{"v":235,"d":"235 €"}]
[null,"2017-02-20","Karita","Musiikki",{"v":20,"d":"20 €"}]
[null,"2017-02-25","Karita","Liput",{"v":125,"d":"125 €"}]
[null,"2017-02-25","Karita","Urheilu",{"v":125,"d":"125 €"}]

{"sheet":"4","index":4,"n_rows":108,"n_cols":9,"rows_kept":108}
["Viimeinen kysytty kysymys oli ”Mihin kukin henkilö käytti rahaa?”."]
["Vastasimme tähän kysymykseen lisäämällä Tyyppi-sarakekentän. Sen tuloksena pivot-taulukossa on nyt viisi uutta saraketta, jotka näyttävät meille kunkin henkilön tekemän oston tyypin. "]
["Uusi pivot-taulukko on nyt soluissa C10–I15, ja siinä on sarakkeet Ostaja, Ruoka, Musiikki, Urheilu, Liput, Lahjat ja Yhteensä. Ostaja- ja Kaikki yhteensä ovat samat kuin aiemminkin, ja uudet tietosarakkeet ovat niiden välissä."]
["Jos haluat jatkaa tätä opetusohjelmaa, paina Ctrl + Page Down. Jos haluat palata edelliseen taulukkoon, paina Ctrl + Page Up."]
[]
[]
[]
[]
[]
[]
[null,null,"Summa  / Summa","Tyyppi"]
[null,null,"Ostaja","Ruoka","Musiikki","Urheilu","Liput","Lahjat","Kaikki yhteensä"]
[null,null,"Isä",{"v":125,"d":"125 €"},{"$nulls":3},{"v":95,"d":"95 €"},{"v":220,"d":"220 €"}]
[null,null,"Karita",null,{"v":20,"d":"20 €"},{"v":125,"d":"125 €"},{"v":125,"d":"125 €"},null,{"v":270,"d":"270 €"}]
[null,null,"Äiti",{"v":560,"d":"560 €"},null,null,{"v":250,"d":"250 €"},null,{"v":810,"d":"810 €"}]
[null,null,"Kaikki yhteensä",{"v":685,"d":"685 €"},{"v":20,"d":"20 €"},{"v":125,"d":"125 €"},{"v":375,"d":"375 €"},{"v":95,"d":"95 €"},{"v":1300,"d":"1,300 €"}]
{"$rows_empty":83}
[null,"Päivämäärä","Ostaja","Tyyppi","Summa"]
[null,"2017-01-01","Isä","Lahjat",{"v":95,"d":"95 €"}]
[null,"2017-01-15","Äiti","Ruoka",{"v":325,"d":"325 €"}]
[null,"2017-01-17","Äiti","Liput",{"v":250,"d":"250 €"}]
[null,"2017-01-21","Isä","Ruoka",{"v":125,"d":"125 €"}]
[null,"2017-02-02","Äiti","Ruoka",{"v":235,"d":"235 €"}]
[null,"2017-02-20","Karita","Musiikki",{"v":20,"d":"20 €"}]
[null,"2017-02-25","Karita","Liput",{"v":125,"d":"125 €"}]
[null,"2017-02-25","Karita","Urheilu",{"v":125,"d":"125 €"}]

{"sheet":"5","index":5,"n_rows":108,"n_cols":9,"rows_kept":108}
["Jos pivot-taulukkoa on vaikea ymmärtää, kokeile seuraavaa: Lue alkaen vasemmalta, sitten ylhäältä ja sitten alhaalta. Alla olevassa esimerkissä Isä on solussa C12, 125 €:n ruoat solussa D12, 95 €:n lahjat solussa E12 ja Kaikki yhteensä 220 € solussa I12. Riveillä 13 ja 14 näkyvät Karitan ja äidin tiedot, ja rivillä 15 näkyy Kaikki yhteensä."]
["Jos haluat jatkaa tätä opetusohjelmaa, paina Ctrl + Page Down. Jos haluat palata edelliseen taulukkoon, paina Ctrl + Page Up."]
{"$rows_empty":8}
[null,null,"Summa  / Summa","Tyyppi"]
[null,null,"Ostaja","Ruoka","Lahjat","Musiikki","Urheilu","Liput","Kaikki yhteensä"]
[null,null,"Isä",{"v":125,"d":"125 €"},{"v":95,"d":"95 €"},{"$nulls":3},{"v":220,"d":"220 €"}]
[null,null,"Karita",null,null,{"v":20,"d":"20 €"},{"v":125,"d":"125 €"},{"v":125,"d":"125 €"},{"v":270,"d":"270 €"}]
[null,null,"Äiti",{"v":560,"d":"560 €"},{"$nulls":3},{"v":250,"d":"250 €"},{"v":810,"d":"810 €"}]
[null,null,"Kaikki yhteensä",{"v":685,"d":"685 €"},{"v":95,"d":"95 €"},{"v":20,"d":"20 €"},{"v":125,"d":"125 €"},{"v":375,"d":"375 €"},{"v":1300,"d":"1,300 €"}]
{"$rows_empty":83}
[null,"Päivämäärä","Ostaja","Tyyppi","Summa"]
[null,"2017-01-01","Isä","Lahjat",{"v":95,"d":"95 €"}]
[null,"2017-01-15","Äiti","Ruoka",{"v":325,"d":"325 €"}]
[null,"2017-01-17","Äiti","Liput",{"v":250,"d":"250 €"}]
[null,"2017-01-21","Isä","Ruoka",{"v":125,"d":"125 €"}]
[null,"2017-02-02","Äiti","Ruoka",{"v":235,"d":"235 €"}]
[null,"2017-02-20","Karita","Musiikki",{"v":20,"d":"20 €"}]
[null,"2017-02-25","Karita","Liput",{"v":125,"d":"125 €"}]
[null,"2017-02-25","Karita","Urheilu",{"v":125,"d":"125 €"}]

{"sheet":"6","index":6,"n_rows":3,"n_cols":1,"rows_kept":3}
["Älä tee tätä nyt, mutta muutaman vaiheen kuluttua käytät Pivot-taulukkoa. Ensimmäiseksi luot tiedot Sarakkeet-kenttään. Teet sen sijoittamalla Tyyppi-kentän Sarakkeet-kentän alueelle."]
["Pivot-taulukon kentät luettelon kuvassa näkyy nuolikohdistin, joka vetää Tyyppi-kenttää sarakealueelle."]
["Jos haluat jatkaa tätä opetusohjelmaa, paina Ctrl + Page Down. Jos haluat palata edelliseen taulukkoon, paina Ctrl + Page Up."]

{"sheet":"7","index":7,"n_rows":108,"n_cols":9,"rows_kept":108}
["1. Tässä esimerkissä pivot-taulukon alue on soluissa B14–C18. Siirry mihin tahansa näistä soluista."]
["2. Avaa Pivot-taulukon kentät luettelon painamalla Alt+JY, E. Kohdistus siirtyy oletusarvoisesti Haku tekstiruutuun: \"Haku\" muokkaus"]
["3. Valitse Tyyppi-kenttä nuolinäppäimillä. Kun kenttä on valittu, lisää Tyyppi-kenttä Rivit painamalla välilyöntinäppäintä. "]
["4. Valitse Tyyppi-kenttä painamalla sarkainnäppäintä. Paina Enter-näppäintä ja valitse sitten Siirrä sarakeotsikoihin nuolinäppäimillä. Lisää Tyyppi-kenttä Sarakkeet painamalla Enter. Poistu Pivot-taulukon kentät ruudusta painamalla Alt+JY+E."]
["Jos haluat jatkaa tätä opetusohjelmaa, paina Ctrl + Page Down. Jos haluat palata edelliseen taulukkoon, paina Ctrl + Page Up."]
[]
[]
[]
[{"$nulls":8},{"$f":"IF(AND($B$15=\"Ostaja\",$H$18=810),\"Hyvää työtä! Sijoitit\",\" \")","v":" "}]
[{"$nulls":8},{"$f":"IF(AND($B$15=\"Ostaja\",$H$18=810),\"ensimmäisen sarakekentän.\",\" \")","v":" "}]
[{"$nulls":8},{"$f":"IF(AND($B$15=\"Ostaja\",$H$18=810),\"Jatka valitsemalla Seuraava...\",\" \")","v":" "}]
[]
[]
[null,"Ostaja","Summa  / Summa"]
[null,"Isä",{"v":220,"d":"220 €"}]
[null,"Karita",{"v":270,"d":"270 €"}]
[null,"Äiti",{"v":810,"d":"810 €"}]
[null,"Kaikki yhteensä",{"v":1300,"d":"1,300 €"}]
{"$rows_empty":81}
[null,"Päivämäärä","Ostaja","Tyyppi","Summa"]
[null,"2017-01-01","Isä","Lahjat",{"v":95,"d":"95 €"}]
[null,"2017-01-15","Äiti","Ruoka",{"v":325,"d":"325 €"}]
[null,"2017-01-17","Äiti","Liput",{"v":250,"d":"250 €"}]
[null,"2017-01-21","Isä","Ruoka",{"v":125,"d":"125 €"}]
[null,"2017-02-02","Äiti","Ruoka",{"v":235,"d":"235 €"}]
[null,"2017-02-20","Karita","Musiikki",{"v":20,"d":"20 €"}]
[null,"2017-02-25","Karita","Liput",{"v":125,"d":"125 €"}]
[null,"2017-02-25","Karita","Urheilu",{"v":125,"d":"125 €"}]

{"sheet":"8","index":8,"n_rows":108,"n_cols":9,"rows_kept":108}
["Tarkastellaan nyt juuri tekemääsi pivot-taulukkoa. Tällä kertaa olemme kuitenkin lisänneet värejä rivi-, sarake- ja arvokenttien erottamista varten."]
["Rivikenttä on soluissa C10–C13 ja on keltainen."]
["Sarakekenttä on soluissa D9–H10 ja on oranssi."]
["Arvokenttä on soluissa D11–H13 ja on oranssi."]
["Jos haluat jatkaa tätä opetusohjelmaa, paina Ctrl + Page Down. Jos haluat palata edelliseen taulukkoon, paina Ctrl + Page Up."]
[]
[]
[]
[null,null,"Summa  / Summa","Tyyppi"]
[null,null,"Ostaja","Ruoka","Lahjat","Musiikki","Urheilu","Liput","Kaikki yhteensä"]
[null,null,"Isä",{"v":125,"d":"125 €"},{"v":95,"d":"95 €"},{"$nulls":3},{"v":220,"d":"220 €"}]
[null,null,"Karita",null,null,{"v":20,"d":"20 €"},{"v":125,"d":"125 €"},{"v":125,"d":"125 €"},{"v":270,"d":"270 €"}]
[null,null,"Äiti",{"v":560,"d":"560 €"},{"$nulls":3},{"v":250,"d":"250 €"},{"v":810,"d":"810 €"}]
[null,null,"Kaikki yhteensä",{"v":685,"d":"685 €"},{"v":95,"d":"95 €"},{"v":20,"d":"20 €"},{"v":125,"d":"125 €"},{"v":375,"d":"375 €"},{"v":1300,"d":"1,300 €"}]
{"$rows_empty":85}
[null,"Päivämäärä","Ostaja","Tyyppi","Summa"]
[null,"2017-01-01","Isä","Lahjat",{"v":95,"d":"95 €"}]
[null,"2017-01-15","Äiti","Ruoka",{"v":325,"d":"325 €"}]
[null,"2017-01-17","Äiti","Liput",{"v":250,"d":"250 €"}]
[null,"2017-01-21","Isä","Ruoka",{"v":125,"d":"125 €"}]
[null,"2017-02-02","Äiti","Ruoka",{"v":235,"d":"235 €"}]
[null,"2017-02-20","Karita","Musiikki",{"v":20,"d":"20 €"}]
[null,"2017-02-25","Karita","Liput",{"v":125,"d":"125 €"}]
[null,"2017-02-25","Karita","Urheilu",{"v":125,"d":"125 €"}]

{"sheet":"9","index":9,"n_rows":3,"n_cols":1,"rows_kept":3}
["Tässä on toinen tapa ajatella asiaa: Rivikenttä on vasemmalla ja sarakekenttä yläreunassa. Kummassakin on arvokenttää varten ehto, joka summaa ne yhteen."]
["Käsitteellisessä kuvassa näkyy 4-osainen suorakulmainen alue, jossa keltainen Rivi-kenttä on alhaalla vasemmalla, oranssi Sarake-kenttä ylhäällä oikealla ja sininen Arvo-kenttä alhaalla oikealla."]
["Jos haluat jatkaa tätä opetusohjelmaa, paina Ctrl + Page Down. Jos haluat palata edelliseen taulukkoon, paina Ctrl + Page Up."]

{"sheet":"10","index":10,"n_rows":3,"n_cols":1,"rows_kept":3}
["Ajattele asiaa näin, kun käytät kenttäluetteloa. Rivikenttä on vasemmalla ja sarakekenttä yläreunassa. Kummassakin on arvokenttää varten ehto, joka summaa ne yhteen."]
["Käsitteellisessä kuvassa näkyy Pivot-taulukon kentät luettelon, jossa keltainen Rivi-kenttä on alhaalla vasemmalla, oranssi Sarake-kenttä ylhäällä oikealla ja sininen Arvo-kenttä alhaalla oikealla."]
["Jos haluat jatkaa tätä opetusohjelmaa, paina Ctrl + Page Down. Jos haluat palata edelliseen taulukkoon, paina Ctrl + Page Up."]

{"sheet":"11","index":11,"n_rows":121,"n_cols":24,"rows_kept":121}
["Ota huomioon seuraava seikka: Jos sarakekenttä lisää pivot-taulukkoon paljon sarakkeita, taulukosta tulee hyvin leveä. "]
["Tässä esimerkissä pivot-taulukko on nyt soluissa C10–X15, koska sarakekenttä on lisännyt 20 uutta saraketta. Sarakkeita on siis paljon. Siksi taulukkoa on vieritettävä paljon..."]
["Jos haluat jatkaa tätä opetusohjelmaa, paina Ctrl + Page Down. Jos haluat palata edelliseen taulukkoon, paina Ctrl + Page Up."]
[]
[]
[]
[]
[]
[]
[null,null,"Summa  / Summa","Tyyppi"]
[null,null,"Ostaja","Kirjat","Ruoka","Polttoaine","Musiikki","Urheilu","Liput","Ruokailu ulkona","Sähkö","Terveydenhoito","Hammaslääkäri","Verot","Autovakuutus","Pysäköinti","Elektroniikka","Lentomatkat","Vaatteet","Musiikin oppitunnit","Kerhojen jäsenmaksut","Sairausvakuutus","Kotivakuutus","Kaikki yhteensä"]
[null,null,"Isä",{"$nulls":4},{"v":1000,"d":"1,000 €"},{"$nulls":5},{"v":500,"d":"500 €"},{"$nulls":3},{"v":500,"d":"500 €"},{"$nulls":5},{"v":2000,"d":"2,000 €"}]
[null,null,"Karita",{"v":250,"d":"250 €"},null,null,{"v":20,"d":"20 €"},null,{"v":125,"d":"125 €"},{"v":20,"d":"20 €"},{"$nulls":5},{"v":20,"d":"20 €"},{"v":125,"d":"125 €"},null,{"v":125,"d":"125 €"},{"v":250,"d":"250 €"},{"$nulls":3},{"v":935,"d":"935 €"}]
[null,null,"Äiti",null,{"v":470,"d":"470 €"},{"v":74,"d":"74 €"},{"$nulls":4},{"v":70,"d":"70 €"},{"v":74,"d":"74 €"},{"v":235,"d":"235 €"},null,{"v":74,"d":"74 €"},{"$nulls":5},{"v":125,"d":"125 €"},{"v":70,"d":"70 €"},{"v":235,"d":"235 €"},{"v":1427,"d":"1,427 €"}]
[null,null,"Kaikki yhteensä",{"v":250,"d":"250 €"},{"v":470,"d":"470 €"},{"v":74,"d":"74 €"},{"v":20,"d":"20 €"},{"v":1000,"d":"1,000 €"},{"v":125,"d":"125 €"},{"v":20,"d":"20 €"},{"v":70,"d":"70 €"},{"v":74,"d":"74 €"},{"v":235,"d":"235 €"},{"v":500,"d":"500 €"},{"v":74,"d":"74 €"},{"v":20,"d":"20 €"},{"v":125,"d":"125 €"},{"v":500,"d":"500 €"},{"v":125,"d":"125 €"},{"v":250,"d":"250 €"},{"v":125,"d":"125 €"},{"v":70,"d":"70 €"},{"v":235,"d":"235 €"},{"v":4362,"d":"4,362 €"}]
{"$rows_empty":84}
[null,"Päivämäärä","Ostaja","Tyyppi","Summa"]
[null,"2017-01-17","Isä","Urheilu",{"v":1000,"d":"1,000 €"}]
[null,"2017-01-17","Isä","Lentomatkat",{"v":500,"d":"500 €"}]
[null,"2017-01-17","Isä","Verot",{"v":500,"d":"500 €"}]
[null,"2017-02-20","Karita","Musiikki",{"v":20,"d":"20 €"}]
[null,"2017-02-25","Karita","Liput",{"v":125,"d":"125 €"}]
[null,"2017-01-21","Karita","Kirjat",{"v":250,"d":"250 €"}]
[null,"2017-02-20","Karita","Ruokailu ulkona",{"v":20,"d":"20 €"}]
[null,"2017-02-25","Karita","Vaatteet",{"v":125,"d":"125 €"}]
[null,"2017-01-21","Karita","Musiikin oppitunnit",{"v":250,"d":"250 €"}]
[null,"2017-02-20","Karita","Pysäköinti",{"v":20,"d":"20 €"}]
[null,"2017-02-25","Karita","Elektroniikka",{"v":125,"d":"125 €"}]
[null,"2017-01-01","Äiti","Polttoaine",{"v":74,"d":"74 €"}]
[null,"2017-01-15","Äiti","Ruoka",{"v":235,"d":"235 €"}]
[null,"2017-01-21","Äiti","Kerhojen jäsenmaksut",{"v":125,"d":"125 €"}]
[null,"2017-02-02","Äiti","Ruoka",{"v":235,"d":"235 €"}]
[null,"2017-01-01","Äiti","Terveydenhoito",{"v":74,"d":"74 €"}]
[null,"2017-01-15","Äiti","Sähkö",{"v":70,"d":"70 €"}]
[null,"2017-02-02","Äiti","Hammaslääkäri",{"v":235,"d":"235 €"}]
[null,"2017-01-01","Äiti","Autovakuutus",{"v":74,"d":"74 €"}]
[null,"2017-01-15","Äiti","Sairausvakuutus",{"v":70,"d":"70 €"}]
[null,"2017-02-02","Äiti","Kotivakuutus",{"v":235,"d":"235 €"}]

{"sheet":"12","index":12,"n_rows":119,"n_cols":5,"rows_kept":119}
["Erikoisleveille pivot-taulukoille on vaihtoehto: voit käyttää niiden sijaan toista rivikenttää. Toinen rivikenttä näkyy sisennettynä ensimmäiseen rivikentän alapuolella."]
["Tässä esimerkissä on pivot-taulukko solusta D8 soluun E32. Siinä näkyy isä, Karita ja äiti ensimmäisinä rivikenttinä sarakkeessa D. Sitten kulutyypit ovat niiden alapuolella toisina rivikenttinä, joiden kohteet ovat esimerkiksi Urheilu, Lentomatka ja Ruokailu ulkona."]
["HYÖDYLLISIÄ TIETOJA\nToinen rivikenttä luo pystysuuntaisen pivot-taulukon vaakasuuntaisen sijaan. Jotkut pitävät pystysuuntaisia pivot-taulukoita helppolukuisempina, koska niitä ei tarvitse vierittää yhtä paljon puolelta toiselle."]
["EXCEL-PUHETTA\nToista rivikenttää kutsutaan joskus toissijaiseksi rivikentäksi."]
["Jos haluat jatkaa tätä opetusohjelmaa, paina Ctrl + Page Down. Jos haluat palata edelliseen taulukkoon, paina Ctrl + Page Up."]
[]
[]
[{"$nulls":3},"Riviotsikot","Summa  / Summa"]
[{"$nulls":3},"Isä",{"v":2000,"d":"2,000 €"}]
[{"$nulls":3},"Urheilu",{"v":1000,"d":"1,000 €"}]
[{"$nulls":3},"Verot",{"v":500,"d":"500 €"}]
[{"$nulls":3},"Lentomatkat",{"v":500,"d":"500 €"}]
[{"$nulls":3},"Karita",{"v":935,"d":"935 €"}]
[{"$nulls":3},"Kirjat",{"v":250,"d":"250 €"}]
[{"$nulls":3},"Musiikki",{"v":20,"d":"20 €"}]
[{"$nulls":3},"Liput",{"v":125,"d":"125 €"}]
[{"$nulls":3},"Ruokailu ulkona",{"v":20,"d":"20 €"}]
[{"$nulls":3},"Pysäköinti",{"v":20,"d":"20 €"}]
[{"$nulls":3},"Elektroniikka",{"v":125,"d":"125 €"}]
[{"$nulls":3},"Vaatteet",{"v":125,"d":"125 €"}]
[{"$nulls":3},"Musiikin oppitunnit",{"v":250,"d":"250 €"}]
[{"$nulls":3},"Äiti",{"v":1427,"d":"1,427 €"}]
[{"$nulls":3},"Ruoka",{"v":470,"d":"470 €"}]
[{"$nulls":3},"Polttoaine",{"v":74,"d":"74 €"}]
[{"$nulls":3},"Sähkö",{"v":70,"d":"70 €"}]
[{"$nulls":3},"Terveydenhoito",{"v":74,"d":"74 €"}]
[{"$nulls":3},"Hammaslääkäri",{"v":235,"d":"235 €"}]
[{"$nulls":3},"Autovakuutus",{"v":74,"d":"74 €"}]
[{"$nulls":3},"Kerhojen jäsenmaksut",{"v":125,"d":"125 €"}]
[{"$nulls":3},"Sairausvakuutus",{"v":70,"d":"70 €"}]
[{"$nulls":3},"Kotivakuutus",{"v":235,"d":"235 €"}]
[{"$nulls":3},"Kaikki yhteensä",{"v":4362,"d":"4,362 €"}]
{"$rows_empty":65}
[null,"Päivämäärä","Ostaja","Tyyppi","Summa"]
[null,"2017-01-17","Isä","Urheilu",{"v":1000,"d":"1,000 €"}]
[null,"2017-01-17","Isä","Lentomatkat",{"v":500,"d":"500 €"}]
[null,"2017-01-17","Isä","Verot",{"v":500,"d":"500 €"}]
[null,"2017-02-20","Karita","Musiikki",{"v":20,"d":"20 €"}]
[null,"2017-02-25","Karita","Liput",{"v":125,"d":"125 €"}]
[null,"2017-01-21","Karita","Kirjat",{"v":250,"d":"250 €"}]
[null,"2017-02-20","Karita","Ruokailu ulkona",{"v":20,"d":"20 €"}]
[null,"2017-02-25","Karita","Vaatteet",{"v":125,"d":"125 €"}]
[null,"2017-01-21","Karita","Musiikin oppitunnit",{"v":250,"d":"250 €"}]
[null,"2017-02-20","Karita","Pysäköinti",{"v":20,"d":"20 €"}]
[null,"2017-02-25","Karita","Elektroniikka",{"v":125,"d":"125 €"}]
[null,"2017-01-01","Äiti","Polttoaine",{"v":74,"d":"74 €"}]
[null,"2017-01-15","Äiti","Ruoka",{"v":235,"d":"235 €"}]
[null,"2017-01-21","Äiti","Kerhojen jäsenmaksut",{"v":125,"d":"125 €"}]
[null,"2017-02-02","Äiti","Ruoka",{"v":235,"d":"235 €"}]
[null,"2017-01-01","Äiti","Terveydenhoito",{"v":74,"d":"74 €"}]
[null,"2017-01-15","Äiti","Sähkö",{"v":70,"d":"70 €"}]
[null,"2017-02-02","Äiti","Hammaslääkäri",{"v":235,"d":"235 €"}]
[null,"2017-01-01","Äiti","Autovakuutus",{"v":74,"d":"74 €"}]
[null,"2017-01-15","Äiti","Sairausvakuutus",{"v":70,"d":"70 €"}]
[null,"2017-02-02","Äiti","Kotivakuutus",{"v":235,"d":"235 €"}]

{"sheet":"13","index":13,"n_rows":3,"n_cols":1,"rows_kept":3}
["Seuraavassa taulukossa lisäät toisen rivikentän. Teet sen sijoittamalla Tyyppi-kentän Ostaja-kentän alapuolelle Rivit-kentässä."]
["Pivot-taulukon kentät luettelon kuvassa näkyy nuolikohdistin, joka vetää Tyyppi-kenttää Rivit."]
["Jos haluat jatkaa tätä opetusohjelmaa, paina Ctrl + Page Down. Jos haluat palata edelliseen taulukkoon, paina Ctrl + Page Up."]

{"sheet":"14","index":14,"n_rows":122,"n_cols":9,"rows_kept":122}
["1. Tässä esimerkissä pivot-taulukon alue on soluissa B13–C17. Siirry mihin tahansa näistä soluista. "]
["2. Avaa Pivot-taulukon kenttäluettelo painamalla Alt+JT, L. Kohdistus siirtyy oletusarvoisesti haun tekstiruutuun. Siinä lukee Kirjoita haettavat sanat. Älä kirjoita mitään, vaan paina sarkainta kerran. HUOMAUTUS: jos kenttäluettelo ei käynnisty, paina näppäinyhdistelmää ALT + JT, L uudelleen."]
["3. Siirry Tyyppi-kenttään nuolinäppäimillä. Lisää Tyyppi-kenttä Rivit painamalla välilyöntinäppäintä. "]
["4. Poistu Pivot-taulukon kentät ruudusta painamalla Esc-näppäintä. "]
["Jos haluat jatkaa tätä opetusohjelmaa, paina Ctrl + Page Down. Jos haluat palata edelliseen taulukkoon, paina Ctrl + Page Up.",{"$nulls":7},{"$f":"IF(AND($B$15=\"Lentomatkat\",$C$36=74),\"Hyvin menee! Lisäsit\",\" \")","v":" "}]
[{"$nulls":8},{"$f":"IF(AND($B$15=\"Lentomatkat\",$C$36=74),\"toisen rivikentän\",\" \")","v":" "}]
[{"$nulls":8},{"$f":"IF(AND($B$15=\"Lentomatkat\",$C$36=74),\"pivot-taulukkoon. Vieritä \",\" \")","v":" "}]
[{"$nulls":8},{"$f":"IF(AND($B$15=\"Lentomatkat\",$C$36=74),\"alaspäin ja valitse Seuraava...\",\" \")","v":" "}]
[]
[]
[]
[]
[null,"Riviotsikot","Summa  / Summa"]
[null,"Isä",{"v":2000,"d":"2,000 €"}]
[null,"Karita",{"v":935,"d":"935 €"}]
[null,"Äiti",{"v":1427,"d":"1,427 €"}]
[null,"Kaikki yhteensä",{"v":4362,"d":"4,362 €"}]
{"$rows_empty":83}
[null,"Päivämäärä","Ostaja","Tyyppi","Summa"]
[null,"2017-01-17","Isä","Urheilu",{"v":1000,"d":"1,000 €"}]
[null,"2017-01-17","Isä","Lentomatkat",{"v":500,"d":"500 €"}]
[null,"2017-01-17","Isä","Verot",{"v":500,"d":"500 €"}]
[null,"2017-02-20","Karita","Musiikki",{"v":20,"d":"20 €"}]
[null,"2017-02-25","Karita","Liput",{"v":125,"d":"125 €"}]
[null,"2017-01-21","Karita","Kirjat",{"v":250,"d":"250 €"}]
[null,"2017-02-20","Karita","Ruokailu ulkona",{"v":20,"d":"20 €"}]
[null,"2017-02-25","Karita","Vaatteet",{"v":125,"d":"125 €"}]
[null,"2017-01-21","Karita","Musiikin oppitunnit",{"v":250,"d":"250 €"}]
[null,"2017-02-20","Karita","Pysäköinti",{"v":20,"d":"20 €"}]
[null,"2017-02-25","Karita","Elektroniikka",{"v":125,"d":"125 €"}]
[null,"2017-01-01","Äiti","Polttoaine",{"v":74,"d":"74 €"}]
[null,"2017-01-15","Äiti","Ruoka",{"v":235,"d":"235 €"}]
[null,"2017-01-21","Äiti","Kerhojen jäsenmaksut",{"v":125,"d":"125 €"}]
[null,"2017-02-02","Äiti","Ruoka",{"v":235,"d":"235 €"}]
[null,"2017-01-01","Äiti","Terveydenhoito",{"v":74,"d":"74 €"}]
[null,"2017-01-15","Äiti","Sähkö",{"v":70,"d":"70 €"}]
[null,"2017-02-02","Äiti","Hammaslääkäri",{"v":235,"d":"235 €"}]
[null,"2017-01-01","Äiti","Autovakuutus",{"v":74,"d":"74 €"}]
[null,"2017-01-15","Äiti","Sairausvakuutus",{"v":70,"d":"70 €"}]
[null,"2017-02-02","Äiti","Kotivakuutus",{"v":235,"d":"235 €"}]

{"sheet":"15","index":15,"n_rows":121,"n_cols":7,"rows_kept":121}
["Jos haluat yksinkertaistaa pivot-taulukkoa, voit kutistaa toisen rivikentän tiedot ylös ja pois tieltä. "]
["Tässä esimerkissä pivot-taulukko on soluissa F7–G31. Valitse ensimmäinen rivikenttä isää varten valitsemalla solu F8. Laajenna seuraavaksi toista kenttää painamalla näppäinyhdistelmää Alt+JY > A, tai kutista se painamalla näppäintä K."]
["Jos haluat jatkaa tätä opetusohjelmaa, paina Ctrl + Page Down. Jos haluat palata edelliseen taulukkoon, paina Ctrl + Page Up."]
[]
[]
[{"$nulls":5},{"$f":"IF(AND($F$9=\"Karita\",$G$9=935),\"Hienoa!\",\" \")","v":" "}]
[{"$nulls":5},"Riviotsikot","Summa  / Summa"]
[{"$nulls":5},"Isä",{"v":2000,"d":"2,000 €"}]
[{"$nulls":5},"Urheilu",{"v":1000,"d":"1,000 €"}]
[{"$nulls":5},"Verot",{"v":500,"d":"500 €"}]
[{"$nulls":5},"Lentomatkat",{"v":500,"d":"500 €"}]
[{"$nulls":5},"Karita",{"v":935,"d":"935 €"}]
[{"$nulls":5},"Kirjat",{"v":250,"d":"250 €"}]
[{"$nulls":5},"Ruokailu ulkona",{"v":20,"d":"20 €"}]
[{"$nulls":5},"Elektroniikka",{"v":125,"d":"125 €"}]
[{"$nulls":5},"Musiikki",{"v":20,"d":"20 €"}]
[{"$nulls":5},"Pysäköinti",{"v":20,"d":"20 €"}]
[{"$nulls":5},"Liput",{"v":125,"d":"125 €"}]
[{"$nulls":5},"Vaatteet",{"v":125,"d":"125 €"}]
[{"$nulls":5},"Musiikin oppitunnit",{"v":250,"d":"250 €"}]
[{"$nulls":5},"Äiti",{"v":1427,"d":"1,427 €"}]
[{"$nulls":5},"Autovakuutus",{"v":74,"d":"74 €"}]
[{"$nulls":5},"Hammaslääkäri",{"v":235,"d":"235 €"}]
[{"$nulls":5},"Sähkö",{"v":70,"d":"70 €"}]
[{"$nulls":5},"Ruoka",{"v":470,"d":"470 €"}]
[{"$nulls":5},"Polttoaine",{"v":74,"d":"74 €"}]
[{"$nulls":5},"Terveydenhoito",{"v":74,"d":"74 €"}]
[{"$nulls":5},"Kerhojen jäsenmaksut",{"v":125,"d":"125 €"}]
[{"$nulls":5},"Sairausvakuutus",{"v":70,"d":"70 €"}]
[{"$nulls":5},"Kotivakuutus",{"v":235,"d":"235 €"}]
[{"$nulls":5},"Kaikki yhteensä",{"v":4362,"d":"4,362 €"}]
{"$rows_empty":68}
[null,"Päivämäärä","Ostaja","Tyyppi","Summa"]
[null,"2017-01-17","Isä","Urheilu",{"v":1000,"d":"1,000 €"}]
[null,"2017-01-17","Isä","Lentomatkat",{"v":500,"d":"500 €"}]
[null,"2017-01-17","Isä","Verot",{"v":500,"d":"500 €"}]
[null,"2017-02-20","Karita","Musiikki",{"v":20,"d":"20 €"}]
[null,"2017-02-25","Karita","Liput",{"v":125,"d":"125 €"}]
[null,"2017-01-21","Karita","Kirjat",{"v":250,"d":"250 €"}]
[null,"2017-02-20","Karita","Ruokailu ulkona",{"v":20,"d":"20 €"}]
[null,"2017-02-25","Karita","Vaatteet",{"v":125,"d":"125 €"}]
[null,"2017-01-21","Karita","Musiikin oppitunnit",{"v":250,"d":"250 €"}]
[null,"2017-02-20","Karita","Pysäköinti",{"v":20,"d":"20 €"}]
[null,"2017-02-25","Karita","Elektroniikka",{"v":125,"d":"125 €"}]
[null,"2017-01-01","Äiti","Polttoaine",{"v":74,"d":"74 €"}]
[null,"2017-01-15","Äiti","Ruoka",{"v":235,"d":"235 €"}]
[null,"2017-01-21","Äiti","Kerhojen jäsenmaksut",{"v":125,"d":"125 €"}]
[null,"2017-02-02","Äiti","Ruoka",{"v":235,"d":"235 €"}]
[null,"2017-01-01","Äiti","Terveydenhoito",{"v":74,"d":"74 €"}]
[null,"2017-01-15","Äiti","Sähkö",{"v":70,"d":"70 €"}]
[null,"2017-02-02","Äiti","Hammaslääkäri",{"v":235,"d":"235 €"}]
[null,"2017-01-01","Äiti","Autovakuutus",{"v":74,"d":"74 €"}]
[null,"2017-01-15","Äiti","Sairausvakuutus",{"v":70,"d":"70 €"}]
[null,"2017-02-02","Äiti","Kotivakuutus",{"v":235,"d":"235 €"}]

{"sheet":"16","index":16,"n_rows":121,"n_cols":7,"rows_kept":121}
["Voit myös kutistaa tai laajentaa toisen rivikentän kokonaan, jos haluat yksinkertaistaa pivot-taulukkoa vielä lisää."]
["Tässä on avain"]
["Valitse pivot-taulukon tietoalue solusta F7 soluun G31 ja kutista sitten koko ryhmä painamalla näppäinyhdistelmää ALT+JY > K. Näppäinyhdistelmä ALT+JY > A vastaavasti laajentaa koko ryhmän."]
["Jos haluat jatkaa tätä opetusohjelmaa, paina Ctrl + Page Down. Jos haluat palata edelliseen taulukkoon, paina Ctrl + Page Up."]
[]
[{"$nulls":5},{"$f":"IF(AND($F$9=\"Karita\",$G$9=935),\"Juuri näin!\",\" \")","v":" "}]
[{"$nulls":5},"Riviotsikot","Summa  / Summa"]
[{"$nulls":5},"Isä",{"v":2000,"d":"2,000 €"}]
[{"$nulls":5},"Urheilu",{"v":1000,"d":"1,000 €"}]
[{"$nulls":5},"Verot",{"v":500,"d":"500 €"}]
[{"$nulls":5},"Lentomatkat",{"v":500,"d":"500 €"}]
[{"$nulls":5},"Karita",{"v":935,"d":"935 €"}]
[{"$nulls":5},"Kirjat",{"v":250,"d":"250 €"}]
[{"$nulls":5},"Ruokailu ulkona",{"v":20,"d":"20 €"}]
[{"$nulls":5},"Elektroniikka",{"v":125,"d":"125 €"}]
[{"$nulls":5},"Musiikki",{"v":20,"d":"20 €"}]
[{"$nulls":5},"Pysäköinti",{"v":20,"d":"20 €"}]
[{"$nulls":5},"Liput",{"v":125,"d":"125 €"}]
[{"$nulls":5},"Vaatteet",{"v":125,"d":"125 €"}]
[{"$nulls":5},"Musiikin oppitunnit",{"v":250,"d":"250 €"}]
[{"$nulls":5},"Äiti",{"v":1427,"d":"1,427 €"}]
[{"$nulls":5},"Autovakuutus",{"v":74,"d":"74 €"}]
[{"$nulls":5},"Hammaslääkäri",{"v":235,"d":"235 €"}]
[{"$nulls":5},"Sähkö",{"v":70,"d":"70 €"}]
[{"$nulls":5},"Ruoka",{"v":470,"d":"470 €"}]
[{"$nulls":5},"Polttoaine",{"v":74,"d":"74 €"}]
[{"$nulls":5},"Terveydenhoito",{"v":74,"d":"74 €"}]
[{"$nulls":5},"Kerhojen jäsenmaksut",{"v":125,"d":"125 €"}]
[{"$nulls":5},"Sairausvakuutus",{"v":70,"d":"70 €"}]
[{"$nulls":5},"Kotivakuutus",{"v":235,"d":"235 €"}]
[{"$nulls":5},"Kaikki yhteensä",{"v":4362,"d":"4,362 €"}]
{"$rows_empty":68}
[null,"Päivämäärä","Ostaja","Tyyppi","Summa"]
[null,"2017-01-17","Isä","Urheilu",{"v":1000,"d":"1,000 €"}]
[null,"2017-01-17","Isä","Lentomatkat",{"v":500,"d":"500 €"}]
[null,"2017-01-17","Isä","Verot",{"v":500,"d":"500 €"}]
[null,"2017-02-20","Karita","Musiikki",{"v":20,"d":"20 €"}]
[null,"2017-02-25","Karita","Liput",{"v":125,"d":"125 €"}]
[null,"2017-01-21","Karita","Kirjat",{"v":250,"d":"250 €"}]
[null,"2017-02-20","Karita","Ruokailu ulkona",{"v":20,"d":"20 €"}]
[null,"2017-02-25","Karita","Vaatteet",{"v":125,"d":"125 €"}]
[null,"2017-01-21","Karita","Musiikin oppitunnit",{"v":250,"d":"250 €"}]
[null,"2017-02-20","Karita","Pysäköinti",{"v":20,"d":"20 €"}]
[null,"2017-02-25","Karita","Elektroniikka",{"v":125,"d":"125 €"}]
[null,"2017-01-01","Äiti","Polttoaine",{"v":74,"d":"74 €"}]
[null,"2017-01-15","Äiti","Ruoka",{"v":235,"d":"235 €"}]
[null,"2017-01-21","Äiti","Kerhojen jäsenmaksut",{"v":125,"d":"125 €"}]
[null,"2017-02-02","Äiti","Ruoka",{"v":235,"d":"235 €"}]
[null,"2017-01-01","Äiti","Terveydenhoito",{"v":74,"d":"74 €"}]
[null,"2017-01-15","Äiti","Sähkö",{"v":70,"d":"70 €"}]
[null,"2017-02-02","Äiti","Hammaslääkäri",{"v":235,"d":"235 €"}]
[null,"2017-01-01","Äiti","Autovakuutus",{"v":74,"d":"74 €"}]
[null,"2017-01-15","Äiti","Sairausvakuutus",{"v":70,"d":"70 €"}]
[null,"2017-02-02","Äiti","Kotivakuutus",{"v":235,"d":"235 €"}]

{"sheet":"17","index":17,"n_rows":107,"n_cols":13,"rows_kept":107}
["Sarakekenttiä voi olla myös useita. Niitä voi lisäksi kutistaa tai laajentaa."]
["Tässä esimerkissä pivot-taulukko on soluissa B13–M19. Tässä tapauksessa Sarakkeet-osassa on Tyyppi-luokka, joka sisältää kohteet Ruoka sekä Lämmitys, sähkö ja vesi."]
["KOKEILE TÄTÄ\nValitse Ruoka solussa C14 ja kutista koko kenttä näppäinyhdistelmällä ALT + JY > A. Voit laajentaa sen näppäinyhdistelmällä ALT + JY > K."]
["Jos haluat jatkaa tätä opetusohjelmaa, paina Ctrl + Page Down. Jos haluat palata edelliseen taulukkoon, paina Ctrl + Page Up."]
{"$rows_empty":7}
[null,null,{"$f":"IF(AND($C$16=398,$D$15=\"Tammi\"),\"Hienoa työtä!\",\" \")","v":" "}]
[null,"Summa  / Summa","Sarakeotsikot"]
[null,null,"Ruoka",{"$nulls":3},"Ruoka Summa","Lämmitys, sähkö ja vesi",{"$nulls":3},"Lämmitys, sähkö ja vesi Summa","Kaikki yhteensä"]
[null,"Riviotsikot","Tammi","Helmi","Maalis","Huhti",null,"Tammi","Helmi","Maalis","Huhti"]
[null,"Karita",{"v":74,"d":"74 €"},{"v":74,"d":"74 €"},{"v":125,"d":"125 €"},{"v":125,"d":"125 €"},{"v":398,"d":"398 €"},{"$nulls":5},{"v":398,"d":"398 €"}]
[null,"Isä",{"v":235,"d":"235 €"},{"v":235,"d":"235 €"},{"v":235,"d":"235 €"},{"v":74,"d":"74 €"},{"v":779,"d":"779 €"},{"$nulls":5},{"v":779,"d":"779 €"}]
[null,"Äiti",{"$nulls":5},{"v":1000,"d":"1,000 €"},{"v":1000,"d":"1,000 €"},{"v":20,"d":"20 €"},{"v":70,"d":"70 €"},{"v":2090,"d":"2,090 €"},{"v":2090,"d":"2,090 €"}]
[null,"Kaikki yhteensä",{"v":309,"d":"309 €"},{"v":309,"d":"309 €"},{"v":360,"d":"360 €"},{"v":199,"d":"199 €"},{"v":1177,"d":"1,177 €"},{"v":1000,"d":"1,000 €"},{"v":1000,"d":"1,000 €"},{"v":20,"d":"20 €"},{"v":70,"d":"70 €"},{"v":2090,"d":"2,090 €"},{"v":3267,"d":"3,267 €"}]
{"$rows_empty":75}
[null,"Kuukausi","Ostaja","Tyyppi","Summa"]
[null,"Tammi","Karita","Ruoka",{"v":74,"d":"74 €"}]
[null,"Tammi","Isä","Ruoka",{"v":235,"d":"235 €"}]
[null,"Tammi","Äiti","Lämmitys, sähkö ja vesi",{"v":1000,"d":"1,000 €"}]
[null,"Helmi","Karita","Ruoka",{"v":74,"d":"74 €"}]
[null,"Helmi","Isä","Ruoka",{"v":235,"d":"235 €"}]
[null,"Helmi","Äiti","Lämmitys, sähkö ja vesi",{"v":1000,"d":"1,000 €"}]
[null,"Maalis","Karita","Ruoka",{"v":125,"d":"125 €"}]
[null,"Maalis","Isä","Ruoka",{"v":235,"d":"235 €"}]
[null,"Maalis","Äiti","Lämmitys, sähkö ja vesi",{"v":20,"d":"20 €"}]
[null,"Huhti","Karita","Ruoka",{"v":125,"d":"125 €"}]
[null,"Huhti","Isä","Ruoka",{"v":74,"d":"74 €"}]
[null,"Huhti","Äiti","Lämmitys, sähkö ja vesi",{"v":70,"d":"70 €"}]

{"sheet":"18","index":18,"n_rows":146,"n_cols":5,"rows_kept":146}
["Muista seuraavat seikat: Jos tarvitset tarkempia tietoja, voit lisätä useita rivikenttiä tai sarakekenttiä. Tässä esimerkissä on kolme rivikenttää."]
["Tässä esimerkissä oleva pivot-taulukko on soluissa D8–E29, ja sen sarakkeessa D ovat kentät Kausi, Ostaja ja Tyyppi ja sarakkeessa E on kenttä Summa  / Summa."]
["ASIANTUNTIJAN VIHJE\nSinun ei tarvitse lisätä paljon kenttiä, vaikka voitkin niin tehdä. Tässä esimerkissä se toimii hyvin. Joskus liian monta kenttää sisennyksineen voivat kuitenkin tehdä pivot-taulukosta liian monimutkaisen muiden ymmärrettäväksi. "]
["Jos haluat jatkaa tätä opetusohjelmaa, paina Ctrl + Page Down. Jos haluat palata edelliseen taulukkoon, paina Ctrl + Page Up."]
[]
[]
[]
[{"$nulls":3},"Riviotsikot","Summa  / Summa"]
[{"$nulls":3},"Syksy",{"v":5425,"d":"5,425 €"}]
[{"$nulls":3},"Äiti",{"v":5425,"d":"5,425 €"}]
[{"$nulls":3},"Vakuutus",{"v":1272,"d":"1,272 €"}]
[{"$nulls":3},"Vuokra",{"v":3220,"d":"3,220 €"}]
[{"$nulls":3},"Lämmitys, sähkö ja vesi",{"v":933,"d":"933 €"}]
[{"$nulls":3},"Kevät",{"v":4760,"d":"4,760 €"}]
[{"$nulls":3},"Isä",{"v":4760,"d":"4,760 €"}]
[{"$nulls":3},"Vakuutus",{"v":1040,"d":"1,040 €"}]
[{"$nulls":3},"Vuokra",{"v":2400,"d":"2,400 €"}]
[{"$nulls":3},"Lämmitys, sähkö ja vesi",{"v":1320,"d":"1,320 €"}]
[{"$nulls":3},"Kesä",{"v":3473,"d":"3,473 €"}]
[{"$nulls":3},"Äiti",{"v":3473,"d":"3,473 €"}]
[{"$nulls":3},"Vakuutus",{"v":1080,"d":"1,080 €"}]
[{"$nulls":3},"Vuokra",{"v":1260,"d":"1,260 €"}]
[{"$nulls":3},"Lämmitys, sähkö ja vesi",{"v":1133,"d":"1,133 €"}]
[{"$nulls":3},"Talvi",{"v":4100,"d":"4,100 €"}]
[{"$nulls":3},"Isä",{"v":4100,"d":"4,100 €"}]
[{"$nulls":3},"Vakuutus",{"v":1030,"d":"1,030 €"}]
[{"$nulls":3},"Vuokra",{"v":1420,"d":"1,420 €"}]
[{"$nulls":3},"Lämmitys, sähkö ja vesi",{"v":1650,"d":"1,650 €"}]
[{"$nulls":3},"Kaikki yhteensä",{"v":17758,"d":"17,758 €"}]
{"$rows_empty":68}
[null,"Ostaja","Kausi","Tyyppi","Summa"]
[null,"Isä","Talvi","Vakuutus",{"v":300,"d":"300 €"}]
[null,"Isä","Talvi","Vuokra",{"v":200,"d":"200 €"}]
[null,"Isä","Talvi","Lämmitys, sähkö ja vesi",{"v":400,"d":"400 €"}]
[null,"Isä","Talvi","Vakuutus",{"v":300,"d":"300 €"}]
[null,"Isä","Talvi","Vuokra",{"v":800,"d":"800 €"}]
[null,"Isä","Talvi","Lämmitys, sähkö ja vesi",{"v":400,"d":"400 €"}]
[null,"Isä","Talvi","Vakuutus",{"v":200,"d":"200 €"}]
[null,"Isä","Talvi","Vuokra",{"v":300,"d":"300 €"}]
[null,"Isä","Talvi","Lämmitys, sähkö ja vesi",{"v":450,"d":"450 €"}]
[null,"Isä","Talvi","Vakuutus",{"v":230,"d":"230 €"}]
[null,"Isä","Talvi","Vuokra",{"v":120,"d":"120 €"}]
[null,"Isä","Talvi","Lämmitys, sähkö ja vesi",{"v":400,"d":"400 €"}]
[null,"Isä","Kevät","Vakuutus",{"v":210,"d":"210 €"}]
[null,"Isä","Kevät","Vuokra",{"v":300,"d":"300 €"}]
[null,"Isä","Kevät","Lämmitys, sähkö ja vesi",{"v":400,"d":"400 €"}]
[null,"Isä","Kevät","Vakuutus",{"v":230,"d":"230 €"}]
[null,"Isä","Kevät","Vuokra",{"v":900,"d":"900 €"}]
[null,"Isä","Kevät","Lämmitys, sähkö ja vesi",{"v":300,"d":"300 €"}]
[null,"Isä","Kevät","Vakuutus",{"v":200,"d":"200 €"}]
[null,"Isä","Kevät","Vuokra",{"v":1000,"d":"1,000 €"}]
[null,"Isä","Kevät","Lämmitys, sähkö ja vesi",{"v":220,"d":"220 €"}]
[null,"Isä","Kevät","Vakuutus",{"v":400,"d":"400 €"}]
[null,"Isä","Kevät","Vuokra",{"v":200,"d":"200 €"}]
[null,"Isä","Kevät","Lämmitys, sähkö ja vesi",{"v":400,"d":"400 €"}]
[null,"Äiti","Kesä","Vakuutus",{"v":100,"d":"100 €"}]
[null,"Äiti","Kesä","Vuokra",{"v":30,"d":"30 €"}]
[null,"Äiti","Kesä","Lämmitys, sähkö ja vesi",{"v":123,"d":"123 €"}]
[null,"Äiti","Kesä","Vakuutus",{"v":300,"d":"300 €"}]
[null,"Äiti","Kesä","Vuokra",{"v":350,"d":"350 €"}]
[null,"Äiti","Kesä","Lämmitys, sähkö ja vesi",{"v":230,"d":"230 €"}]
[null,"Äiti","Kesä","Vakuutus",{"v":120,"d":"120 €"}]
[null,"Äiti","Kesä","Vuokra",{"v":640,"d":"640 €"}]
[null,"Äiti","Kesä","Lämmitys, sähkö ja vesi",{"v":530,"d":"530 €"}]
[null,"Äiti","Kesä","Vakuutus",{"v":560,"d":"560 €"}]
[null,"Äiti","Kesä","Vuokra",{"v":240,"d":"240 €"}]
[null,"Äiti","Kesä","Lämmitys, sähkö ja vesi",{"v":250,"d":"250 €"}]
[null,"Äiti","Syksy","Vakuutus",{"v":62,"d":"62 €"}]
[null,"Äiti","Syksy","Vuokra",{"v":600,"d":"600 €"}]
[null,"Äiti","Syksy","Lämmitys, sähkö ja vesi",{"v":340,"d":"340 €"}]
[null,"Äiti","Syksy","Vakuutus",{"v":205,"d":"205 €"}]
[null,"Äiti","Syksy","Vuokra",{"v":500,"d":"500 €"}]
[null,"Äiti","Syksy","Lämmitys, sähkö ja vesi",{"v":403,"d":"403 €"}]
[null,"Äiti","Syksy","Vakuutus",{"v":503,"d":"503 €"}]
[null,"Äiti","Syksy","Vuokra",{"v":2000,"d":"2,000 €"}]
[null,"Äiti","Syksy","Lämmitys, sähkö ja vesi",{"v":140,"d":"140 €"}]
[null,"Äiti","Syksy","Vakuutus",{"v":502,"d":"502 €"}]
[null,"Äiti","Syksy","Vuokra",{"v":120,"d":"120 €"}]
[null,"Äiti","Syksy","Lämmitys, sähkö ja vesi",{"v":50,"d":"50 €"}]

{"sheet":"19","index":19,"n_rows":55,"n_cols":5,"rows_kept":55}
["Oletko valmis lisäharjoitteluun? Tarkastele soluissa B7–E55 olevia tietoja. Kun olet valmis, siirry seuraavaan taulukkoon ja harjoittele tähän asti oppimaasi. "]
["Kaikkia tietorivejä ei tarvitse tarkistaa. Tarkista vain rivillä 7 olevat kenttänimet. Käsittelet näitä seuraavassa taulukossa. "]
["Jos haluat jatkaa tätä opetusohjelmaa, paina Ctrl + Page Down. Jos haluat palata edelliseen taulukkoon, paina Ctrl + Page Up."]
[]
[]
[]
[null,"Kausi","Myyntiedustaja","Tuote","Myyty kpl"]
[null,"Talvi","Janina","Appelsiineja",300]
[null,"Talvi","Jori","Greippejä",200]
[null,"Talvi","Taavi","Omenoita",400]
[null,"Talvi","Janina","Banaaneja",300]
[null,"Talvi","Jori","Appelsiineja",800]
[null,"Talvi","Taavi","Greippejä",400]
[null,"Talvi","Janina","Omenoita",200]
[null,"Talvi","Jori","Banaaneja",300]
[null,"Talvi","Taavi","Appelsiineja",450]
[null,"Talvi","Janina","Greippejä",230]
[null,"Talvi","Jori","Omenoita",120]
[null,"Talvi","Taavi","Banaaneja",400]
[null,"Kevät","Janina","Punajuuria",210]
[null,"Kevät","Jori","Perunoita",300]
[null,"Kevät","Taavi","Salaattia",400]
[null,"Kevät","Janina","Retiisejä",230]
[null,"Kevät","Jori","Punajuuria",900]
[null,"Kevät","Taavi","Perunoita",300]
[null,"Kevät","Janina","Salaattia",200]
[null,"Kevät","Jori","Retiisejä",1000]
[null,"Kevät","Taavi","Punajuuria",220]
[null,"Kevät","Janina","Perunoita",400]
[null,"Kevät","Jori","Salaattia",200]
[null,"Kevät","Taavi","Retiisejä",400]
[null,"Kesä","Janina","Mustikoita",100]
[null,"Kesä","Jori","Mansikoita",30]
[null,"Kesä","Taavi","Viinirypäleitä",123]
[null,"Kesä","Janina","Pallokurpitsoja",300]
[null,"Kesä","Jori","Mustikoita",350]
[null,"Kesä","Taavi","Mansikoita",230]
[null,"Kesä","Janina","Viinirypäleitä",120]
[null,"Kesä","Jori","Pallokurpitsoja",640]
[null,"Kesä","Taavi","Mustikoita",530]
[null,"Kesä","Janina","Mansikoita",560]
[null,"Kesä","Jori","Viinirypäleitä",240]
[null,"Kesä","Taavi","Pallokurpitsoja",250]
[null,"Syksy","Janina","Kurpitsoja",62]
[null,"Syksy","Jori","Kesäkurpitsoja",600]
[null,"Syksy","Taavi","Omenoita",340]
[null,"Syksy","Janina","Appelsiineja",205]
[null,"Syksy","Jori","Kurpitsoja",500]
[null,"Syksy","Taavi","Kesäkurpitsoja",403]
[null,"Syksy","Janina","Omenoita",503]
[null,"Syksy","Jori","Appelsiineja",2000]
[null,"Syksy","Taavi","Kurpitsoja",140]
[null,"Syksy","Janina","Kesäkurpitsoja",502]
[null,"Syksy","Jori","Omenoita",120]
[null,"Syksy","Taavi","Appelsiineja",50]

{"sheet":"20","index":20,"n_rows":19,"n_cols":10,"rows_kept":19}
["1. Tässä esimerkissä pivot-taulukon alue on soluissa B14–C19. Siirry mihin tahansa näistä soluista. \n\n"]
["2. Avaa Pivot-taulukon kenttäluettelo painamalla Alt+JY, E. Kohdistus siirtyy oletusarvoisesti Haku tekstiruutuun. Siinä lukee Kirjoita haettavat sanat. Älä kirjoita mitään, vaan paina sarkainta kerran. HUOMAUTUS: jos kenttäluettelo ei käynnisty, paina näppäinyhdistelmää ALT + JY, E uudelleen."]
["3. Siirry Myyntiedustaja-kenttään nuolinäppäimillä. Lisää Myyntiedustaja-kenttä Rivit painamalla välilyöntinäppäintä. Jos haluat näyttää Myyntiedustaja tiedot Sarakkeet-alueella, siirry sarkaimella Rivi-osan Myyntiedustaja-kenttään, paina sitten välilyöntinäppäintä ja valitse Siirry sarakeotsikoihin. Poistu Pivot-taulukon kentät ruudusta painamalla Esc-näppäintä. "]
["4. Määritä, kuka on myynyt eniten tuotteita syksyllä, ja tee sitten valinta solussa J8. "]
["Jos haluat jatkaa tätä opetusohjelmaa, paina Ctrl + Page Down. Jos haluat palata edelliseen taulukkoon, paina Ctrl + Page Up."]
[]
[{"$nulls":9},"Valitse seuraavista:"]
[]
[{"$nulls":9},{"$f":"IF($J$8=\"Jori\",\"Olet oikeassa!\",IF($J$8=\"Taavi\",\"Yritä uudelleen...\",IF($J$8=\"Janina\",\"Ei aivan...\",IF($J$8=\" \",\" \",\" \"))))","v":" "}]
[]
[]
[]
[]
[null,"Riviotsikot","Summa  / Myyty kpl"]
[null,"Syksy",{"v":5425,"d":"5,425"}]
[null,"Kevät",{"v":4760,"d":"4,760"}]
[null,"Kesä",{"v":3473,"d":"3,473"}]
[null,"Talvi",{"v":4100,"d":"4,100"}]
[null,"Kaikki yhteensä",{"v":17758,"d":"17,758"}]

{"sheet":"21","index":21,"n_rows":14,"n_cols":10,"rows_kept":14}
["1. Aktivoi Myyty kpl, Summa  / Myyty kpl pivot-taulukko napsauttamalla solua B13.\n\n"]
["2. Avaa Pivot-taulukon kentät luettelo painamalla Alt+JY, E. Kohdistus siirtyy oletusarvoisesti Haku tekstiruutuun. Siinä lukee Kirjoita haettavat sanat. Älä kirjoita mitään, vaan paina sarkainta kerran. HUOMAUTUS: jos kenttäluettelo ei käynnisty, paina näppäinyhdistelmää ALT + JY, E uudelleen."]
["3. Laajenna esimerkkiä nuoli- ja välilyöntinäppäimillä pystysuuntaiseen pivot-taulukkoon, jossa kaudet ovat vasemmalla ja myyntiedustajat sisennettyinä kaudet alapuolella. Poistu Pivot-taulukon kentät ruudusta painamalla Esc-näppäintä. "]
["Jos haluat jatkaa tätä opetusohjelmaa, paina Ctrl + Page Down. Jos haluat palata edelliseen taulukkoon, paina Ctrl + Page Up."]
[{"$nulls":9},{"$f":"IF(AND(B$22=\"Syksy\",$C$23=1272),\"Hyvää työtä! Lisäsit toissijaisen\",\" \")","v":" "}]
[{"$nulls":9},{"$f":"IF(AND(B$22=\"Syksy\",$C$23=1272),\"rivikentän. Vieritä nyt\",\" \")","v":" "}]
[{"$nulls":9},{"$f":"IF(AND(B$22=\"Syksy\",$C$23=1272),\"alaspäin ja valitse Seuraava.\",\" \")","v":" "}]
[]
[]
[]
[]
[]
[null,"Summa  / Myyty kpl"]
[null,{"v":17758,"d":"17,758"}]

{"sheet":"22","index":22,"n_rows":14,"n_cols":10,"rows_kept":14}
["1. Aktivoi Myyty kpl, Summa  / Myyty kpl pivot-taulukko napsauttamalla solua B13."]
["2. Avaa Pivot-taulukon kentät luettelo painamalla Alt+JY, E. Kohdistus siirtyy oletusarvoisesti Haku tekstiruutuun. Siinä lukee Kirjoita haettavat sanat. Älä kirjoita mitään, vaan paina sarkainta kerran. HUOMAUTUS: jos kenttäluettelo ei käynnisty, paina näppäinyhdistelmää ALT + JY, E uudelleen."]
["3. Mukauta esimerkkiä nuoli- ja välilyöntinäppäimillä niin, että siinä näkyy jokainen tuote omalla rivillään ja jokainen kausi omassa sarakkeessaan."]
["Jos haluat jatkaa tätä opetusohjelmaa, paina Ctrl + Page Down. Jos haluat palata edelliseen taulukkoon, paina Ctrl + Page Up.",{"$nulls":8},{"$f":"IF(AND($B$22=\"Omenoita\",$G$18=1505),\"Hyvää työtä! Lisäsit\",\" \")","v":" "}]
[{"$nulls":9},{"$f":"IF(AND($B$22=\"Omenoita\",$G$18=1505),\"rivikentän vasemmalle sekä,\",\" \")","v":" "}]
[{"$nulls":9},{"$f":"IF(AND($B$22=\"Omenoita\",$G$18=1505),\"sarakekentän ja neljä\",\" \")","v":" "}]
[{"$nulls":9},{"$f":"IF(AND($B$22=\"Omenoita\",$G$18=1505),\"uutta saraketta. Vieritä\",\" \")","v":" "}]
[{"$nulls":9},{"$f":"IF(AND($B$22=\"Omenoita\",$G$18=1505),\"alaspäin ja valitse Seuraava...\",\" \")","v":" "}]
[]
[]
[]
[]
[null,"Summa  / Myyty kpl"]
[null,{"v":17758,"d":"17,758"}]

{"sheet":"23","index":23,"n_rows":17,"n_cols":18,"rows_kept":17}
["1. Aktivoi Myyty kpl, Summa  / Myyty kpl pivot-taulukko napsauttamalla solua B14.\n\n"]
["2. Avaa Pivot-taulukon kentät luettelo painamalla Alt+JY, E. Kohdistus siirtyy oletusarvoisesti Haku tekstiruutuun. Siinä lukee Kirjoita haettavat sanat. Älä kirjoita mitään, vaan paina sarkainta kerran. HUOMAUTUS: jos kenttäluettelo ei käynnisty, paina näppäinyhdistelmää ALT + JY, E uudelleen."]
["3. Mukauta esimerkkiä sarkain- ja välilyöntinäppäimillä niin, että siinä näkyy myyntiedustaja vasemmalla ja kaudet sisennettyinä niiden alapuolella."]
["Jos haluat jatkaa tätä opetusohjelmaa, paina Ctrl + Page Down. Jos haluat palata edelliseen taulukkoon, paina Ctrl + Page Up."]
[{"$nulls":10},{"$f":"IF(AND($B$15=\"Taavi\",$C$15=5036),\"Hyvää työtä! Nyt tiedot on\",\" \")","v":" "}]
[{"$nulls":10},{"$f":"IF(AND($B$15=\"Taavi\",$C$15=5036),\"helpompi lukea. Vieritä\",\" \")","v":" "}]
[{"$nulls":10},{"$f":"IF(AND($B$15=\"Taavi\",$C$15=5036),\"alaspäin ja valitse Seuraava...\",\" \")","v":" "}]
[]
[]
[]
[]
[]
[]
[null,null,"Sarakeotsikot"]
[null,null,"Taavi",{"$nulls":3},"Taavi Summa","Jori",{"$nulls":3},"Jori Summa","Janina",{"$nulls":3},"Janina Summa","Kaikki yhteensä"]
[null,null,"Syksy","Kevät","Kesä","Talvi",null,"Syksy","Kevät","Kesä","Talvi",null,"Syksy","Kevät","Kesä","Talvi"]
[null,"Summa  / Myyty kpl",933,{"v":1320,"d":"1,320"},{"v":1133,"d":"1,133"},{"v":1650,"d":"1,650"},{"v":5036,"d":"5,036"},{"v":3220,"d":"3,220"},{"v":2400,"d":"2,400"},{"v":1260,"d":"1,260"},{"v":1420,"d":"1,420"},{"v":8300,"d":"8,300"},{"v":1272,"d":"1,272"},{"v":1040,"d":"1,040"},{"v":1080,"d":"1,080"},{"v":1030,"d":"1,030"},{"v":4422,"d":"4,422"},{"v":17758,"d":"17,758"}]

{"sheet":"24","index":24,"n_rows":16,"n_cols":9,"rows_kept":16}
["1. Aktivoi Myyty kpl, Summa  / Myyty kpl pivot-taulukko napsauttamalla solua B15."]
["2. Avaa Pivot-taulukon kentät luettelo painamalla Alt+JY, E. Kohdistus siirtyy oletusarvoisesti Haku tekstiruutuun. Siinä lukee Kirjoita haettavat sanat. Älä kirjoita mitään, vaan paina sarkainta kerran. HUOMAUTUS: jos kenttäluettelo ei käynnisty, paina näppäinyhdistelmää ALT + JY, E uudelleen."]
["3. Mukauta esimerkkiä sarkain- ja välilyöntinäppäimillä niin, että jokaisella myyntiedustajalla on omat sarakekenttänsä, joissa kaudet näkyvät vasemmalla ja tuotteet sisennettyinä niiden alapuolella."]
["4. Valitse solu I9 ja valitse, montako greippiä Taavi myi talvella."]
["Jos haluat jatkaa tätä opetusohjelmaa, paina Ctrl + Page Down. Jos haluat palata edelliseen taulukkoon, paina Ctrl + Page Up."]
[]
[]
[{"$nulls":8},"Valitse seuraavista:"]
[]
[{"$nulls":8},{"$f":"IF($I$9=400,\"Olet oikeassa!\",IF($I$9=530,\"Yritä uudelleen…\",IF($I$9=123,\"Ei aivan…\",\" \")))","v":" "}]
[]
[]
[]
[]
[null,"Summa  / Myyty kpl"]
[null,{"v":17758,"d":"17,758"}]

{"sheet":"Lisätietoja","index":25,"n_rows":8,"n_cols":1,"rows_kept":8}
["Hyvää työtä. Eivätkö pivot-taulukot olekin käteviä?"]
["Rohkaisemme sinua kuitenkin jatkamaan! Opittavaa on vielä..."]
["Lisää pivot-taulukkotietoja\nLukemalla tämän hyödyllisen artikkelin pivot-taulukoista voit tutustua muihinkin niiden toimintoihin."]
["Tietoja päivittämisestä\nLue tämä tärkeä artikkeli siitä, miten voit päivittää pivot-taulukot. "]
["Yhteisö\nOle yhteydessä muihin Excel-käyttäjiin. He voivat auttaa sinua ja sinä heitä."]
[]
[]
[" "]